Cogmind - Beta 17 @@@ ROGUE MODE // 2026.06.23 @ 17:17:34 Player: JaideBun Result: Destroyed by S-10 Pest with Light Assault Rifle Performance ------------- Evolutions (0) 0 Regions Visited (1) 200 Robots Destroyed (7) 35 Value Destroyed (124) 124 Prototype IDs (0) 0 Alien Tech Used (0) 0 Bonus (0) 0 TOTAL SCORE: 359 Bonus ------- None Cogmind --------- Core Integrity 0/250 Matter 295/300 Energy 89/100 System Corruption 1% Temperature Cool (15) Movement Core (50) Location -10/Materials Parts ------- > --- POWER (1) -------- (None) > --- PROPULSION (2) --- (None) > --- UTILITY (2) ------ Targeting Computer > --- WEAPON (2) ------- (None) > --- INVENTORY (5) ---- Huge Storage Unit Structural Scanner ECM Suite Datajack Peak State ------------ > --- POWER ------------ Ion Engine > --- PROPULSION ------- Aluminum Leg Aluminum Leg > --- UTILITY ---------- Structural Scanner Targeting Computer > --- WEAPON ----------- Small Laser Small Laser > --- INVENTORY -------- Light Ion Engine Small Storage Unit [Rating: 7] Favorites ----------- Power Ion Engine Engine Ion Engine Propulsion Aluminum Leg Leg Aluminum Leg Utility Structural Scanner Device Structural Scanner Processor Targeting Computer Weapon Small Laser Energy Gun Small Laser Energy Cannon Beam Cannon Build | -11 -10 ------- Run | Yrd Mat Slots Evolved . | . . Power . | . . Propulsion . | . . Utility . | . . Weapon . | . . Parts Attached 10 | 5 5 Power 2 | 1 1 Engine 2 | 1 1 Core . | . . Reactor . | . . Propulsion 3 | 2 1 Treads . | . . Leg 3 | 2 1 Wheel . | . . Hover . | . . Flight . | . . Utility 2 | . 2 Device 1 | . 1 Storage . | . . Processor 1 | . 1 Hackware . | . . Protection . | . . Artifact . | . . Weapon 3 | 2 1 Energy Gun 2 | 2 . Energy Cannon 1 | . 1 Ballistic Gun . | . . Ballistic Cannon . | . . Launcher . | . . Special Weapon . | . . Impact Weapon . | . . Slashing Weapon . | . . Piercing Weapon . | . . Special Melee Weapon . | . . Unidentified Prototypes . | . . Parts Lost 8 | . 8 Power 1 | . 1 Propulsion 3 | . 3 Utility 1 | . 1 Weapon 3 | . 3 Highest Loss Streak 5 | . 5 To Critical Strikes 1 | . 1 Average Backups 3 | 1 3 Power . | . . Propulsion . | . . Utility 1 | . 1 Weapon . | . . Tool/Special . | . . Unused Backups 7 | . 7 Power . | . . Propulsion 1 | . 1 Utility 4 | . 4 Weapon 1 | . 1 Tool/Special 1 | . 1 Average Slot Usage (%) 89 | . 89 Engine 11 | . 11 Leg 25 | . 25 Device 12 | . 12 Processor 12 | . 12 Energy Gun 24 | . 24 Peak Build Rating 7 | 5 7 Average Rating 5 | 3 6 On Entrance 2 | . 5 Avg Prop Armor Cover (%) . | . . Naked Turns . | . . Heaviest Build 8 | 7 8 Greatest Support 20 | 20 20 Greatest Overweight (x) 1 | 1 . Average Overweight (x) . | . . Largest Inventory Capacity 5 | 5 5 Average Capacity 5 | 5 5 Most Carried 5 | 2 5 Average Carried 3 | 1 3 Final Capacity 5 | 5 5 Final Carried 4 | 2 4 Class Distribution -------------------- 100% | Mutant Dominant Class ---------------- Mutant | -10/Materials Resources | -11 -10 ----------- Run | Yrd Mat Matter Collected 280 | 193 87 Remotely . | . . Salvage Created 168 | . 168 Parts 9 | . 9 Haulers Intercepted . | . . Recyclers Shooed . | . . Parts Field Recycled . | . . Retrieved Matter . | . . Parts Self-Destructed . | . . Prevented . | . . Parts Restored . | . . Kills | -11 -10 ------- Run | Yrd Mat Combat Hostiles Destroyed 6 | . 6 Guns 5 | . 5 Cannons 1 | . 1 Classes Destroyed 3 | . 3 Watcher 1 | . 1 Swarmer 4 | . 4 Grunt 2 | . 2 Best Kill Streak 2 | . 2 Combat Bots Only 2 | . 2 Max Kills in Single Turn 1 | . 1 Gunslinging . | . . Exploded . | . . Melee . | . . Uniques/NPCs Destroyed . | . . Combat | -11 -10 -------- Run | Yrd Mat Hostile Shots Fired 118 | . 118 Missed 27 | . 27 Hits 91 | . 91 Projectile 91 | . 91 Critical Strikes 4 | . 4 Damage Taken 876 | . 876 Core 252 | . 252 Absorbed by Shields . | . . Regen/Repaired (Parts) 22 | . 22 Core Remaining (%) 100 | 100 . Volleys Fired 29 | . 29 Largest 2 | . 2 Hottest 80 | . 80 Shots Fired 54 | . 54 Gun 50 | . 50 Cannon 4 | . 4 Launcher . | . . Special . | . . Kinetic . | . . Thermal 54 | . 54 Explosive . | . . Electromagnetic . | . . Robot Hit Streak 9 | . 9 Robot Miss Streak 3 | . 3 Penetration Max . | . . Secondary Targets . | . . Shots Hit Robots 34 | . 34 Core Hits 15 | . 15 Critical Kills . | . . Critical Parts Destroyed . | . . Critical Strikes . | . . Melee Attacks . | . . Impact . | . . Slashing . | . . Piercing . | . . Sneak Attacks . | . . Combat Hostiles . | . . Follow-up Attacks . | . . Damage Inflicted 422 | . 422 Guns 368 | . 368 Cannons 53 | . 53 Explosions . | . . Melee . | . . Ramming 1 | . 1 Kinetic . | . . Thermal 421 | . 421 Explosive . | . . Electromagnetic . | . . Impact . | . . Slashing . | . . Piercing . | . . Highest Corruption 1 | . 1 Average Corruption 1 | . 1 Corruption Purged . | . . Corruption Blocked . | . . Effects 4 | . 4 Message Errors 2 | . 2 Matter Fused 1 | . 1 Data Loss (minor) 1 | . 1 Overload Shots . | . . Overflow Damage . | . . Projectiles . | . . Explosions . | . . Melee . | . . Knockbacks . | . . Impact . | . . Kinetic . | . . Secondary . | . . Self-Inflicted Damage . | . . Shots . | . . Rammed . | . . Targets Rammed 1 | . 1 Kicked 1 | . 1 Crushed . | . . Highest Temperature 266 | . 266 Average Temperature 72 | . 72 Received Heat Transfer 324 | . 324 Siege Activations . | . . Martial Activations . | . . Shielding Activations . | . . Robots Disrupted . | . . Combat Hostiles . | . . Robots Corrupted . | . . Combat Hostiles . | . . Parts Fried . | . . Impact Corruptions . | . . Robots Melted . | . . Combat Hostiles . | . . Parts Melted . | . . Heat Transferred 936 | . 936 Parts Sabotaged . | . . Parts Stolen . | . . Parts Stripped . | . . Power Chain Reactions . | . . Alert | -11 -10 ------- Run | Yrd Mat Maximum Alert Level . | . . Low Security (%) 100 | 100 100 Level 1 . | . . Level 2 . | . . Level 3 . | . . Level 4 . | . . Level 5 . | . . High Security . | . . Max Security . | . . Peak Influence 80 | . 80 Initial . | . . Average 15 | . 17 Influence Increases 242 | . 242 Destroy 0b10 Robot/C 120 | . 120 Destroy 0b10 Robot/NC 5 | . 5 Destroy Leader 22 | . 22 Successful Hack 5 | . 5 Lose Combat Pursuer 90 | . 90 Influence Decreases 200 | . 200 Time Decay 161 | . 161 Lost Part 39 | . 39 Squads Dispatched 2 | . 2 Investigation 2 | . 2 Extermination . | . . Reinforcement . | . . Assault . | . . Garrison . | . . Intercept . | . . Searches Triggered . | . . Construction Impeded . | . . Haulers Reinforced . | . . Active Scanning Responses . | . . Cargo Convoy Interrupts . | . . Stealth | -11 -10 --------- Run | Yrd Mat Distress Signals 2 | . 2 Communications Jammed . | . . Distress Signals . | . . Times Spotted 22 | . 22 Peak Tracking Total 10 | . 10 Tactical Retreats 2 | . 2 Traps | -11 -10 ------- Run | Yrd Mat Traps Triggered . | . . Indirectly . | . . Trap Hack Attempts . | . . Triggered . | . . Disarmed . | . . Reprogrammed . | . . Reused . | . . Traps Extracted . | . . Installed . | . . Triggered . | . . Machines | -11 -10 ---------- Run | Yrd Mat Machines Disabled . | . . Max in Single Turn . | . . Machines Repaired . | . . Machines Dismantled . | . . Machines Sabotaged . | . . Overloaded Fab Kills . | . . Hacking | -11 -10 --------- Run | Yrd Mat Machines Accessed 6 | . 6 Terminals 5 | . 5 Fabricators . | . . Repair Stations 1 | . 1 Recycling Units . | . . Scanalyzers . | . . Garrison Access . | . . Total Hacks 14 | . 14 Successful 6 | . 6 Failed 8 | . 8 Catastrophic 1 | . 1 Database Lockouts . | . . Manual . | . . Terminals 12 | . 12 Fabricators . | . . Repair Stations 2 | . 2 Recycling Units . | . . Scanalyzers . | . . Garrison Access . | . . Terminal Hacks 4 | . 4 Record 2 | . 2 Locate Traps 1 | . 1 Hauler Manifests 1 | . 1 Fabricator Hacks . | . . Repair Station Hacks 2 | . 2 Scan Component 1 | . 1 Repair 1 | . 1 Recycling Unit Hacks . | . . Scanalyzer . | . . Garrison Access Hacks . | . . Unauthorized Hacks . | . . Terminals . | . . Fabricators . | . . Repair Stations . | . . Recycling Units . | . . Scanalyzers . | . . Garrison Access . | . . Data Cores Recovered . | . . Used . | . . Hacking Detections 5 | . 5 Full Trace Events 2 | . 2 Feedback Events 1 | . 1 Corruption 1 | . 1 Feedback Blocked . | . . Robot Schematics Acquired . | . . Robots Built . | . . Authchips . | . . Time . | . . Total Robot Build Rating . | . . Part Schematics Acquired . | . . Parts Built . | . . Authchips . | . . Time . | . . Total Part Build Rating . | . . Part Studies Acquired . | . . Parts Repaired 1 | . 1 Time 26 | . 26 Parts Recycled . | . . Recycled Matter . | . . Retrieved Matter . | . . Retrieved Components . | . . Parts Scanalyzed . | . . Part Schematics Acquired . | . . Parts Damaged . | . . Bothacking | -11 -10 ------------ Run | Yrd Mat Used RIF Installer . | . . Robots Hacked . | . . Non-combat . | . . Combat . | . . Robot Hacks Applied . | . . Relay Couplers Released . | . . Fabnet Peak Effective % . | . . Robots Rewired . | . . Allies Hacked . | . . Hacks Repelled . | . . Allies | -11 -10 -------- Run | Yrd Mat Total Allies . | . . Largest Group . | . . Highest-Rated Group . | . . Highest-Rated Ally . | . . Total Orders . | . . Ally Attacks . | . . Total Damage . | . . Kills . | . . Allies Corrupted . | . . Allies Melted . | . . Intel | -11 -10 ------- Run | Yrd Mat Active Infowar (turns) 601 | . 601 Structural 601 | . 601 Robot Analysis Total . | . . Derelict Logs Recovered . | . . Drone Launches . | . . Drone Recoveries . | . . Exploration | -11 -10 ------------- Run | Yrd Mat Turns Passed 714 | 68 646 Spaces Moved 444 | 56 388 Core 29 | 23 6 Treads . | . . Legs 415 | 33 382 Wheels . | . . Hover . | . . Flight . | . . Fastest Speed 50 | 50 50 Average Speed 115 | 93 118 Slowest Speed 120 | 120 120 Overloaded Moves . | . . Propulsion Burnouts . | . . Robots Hopped . | . . Potential Cave-ins . | . . Cave-ins Triggered . | . . Exploration Rate (%) 20 | 3 37 Regions Visited 1 Branch Regions . Pre-discovered Areas . | . . Known Exits Taken . | . . Unknown Exits Taken 1 | 1 . Scrap Searched . | . . Spaces Dug . | . . Terrain Destroyed . | . . Melee . | . . Projectile . | . . AOE . | . . Terrain Rammed . | . . Walls Destroyed . | . . Machines Disabled . | . . Actions | -11 -10 --------- Run | Yrd Mat Total 588 | 69 519 Wait 91 | 7 84 Move 443 | 55 388 Hop . | . . Pick Up 10 | 2 8 Fast Attach 8 | 5 3 Attach 1 | . 1 Detach . | . . Swap 1 | . 1 Drop 4 | . 4 Fire 29 | . 29 Melee . | . . Ram . | . . Kick 1 | . 1 Crush . | . . Escape Stasis . | . . Rewire . | . . Trap . | . . Miscellaneous . | . . Route ------- -11/Scrapyard -10/Materials (discovered 1 exit: [*Mat]) History --------- Turn | Location | Event 4 | -11/Scrapyard | Discovered new exit (range 15) 69 | -11/Scrapyard | Entered Materials 318 | -10/Materials | Build established: Mutant 332 | -10/Materials | Repaired Aluminum Leg 524 | -10/Materials | Discovered new exit (range 16) 663 | -10/Materials | Lost 5 parts (1p2n2w) 669 | -10/Materials | Core integrity fell below 50% 709 | -10/Materials | Core integrity fell below 20% 715 | -10/Materials | Destroyed by S-10 Pest with Light Assault Rifle Last Messages --------------- (1 escort) K-01 Serf collects debris. Lgt. Ion Engine destroyed. Critical hit (Burn: +37). System corrupted: Component data lost. Aluminum Leg destroyed. Processing Tank disabled. K-01 Serf collects debris. Aluminum Leg destroyed. Sml. Laser destroyed. K-01 Serf collects debris. K-01 Serf cleans the Processing Tank. Acquired Beam Cannon. W-16 Scout sends out distress signal. System corrupted: Matter fused (-10). S-10 Pest destroyed. Critical hit (Destroy). Aluminum Leg destroyed. Structural Scanner destroyed. Beam Cannon destroyed. Map ----- +----------------------------------------------------+ | ???????????????????????????????????? | | ??????????? # ##?????????????????? | | ??????????? # ##?????????????????? | | ??????????? # ##?????????????????? | | ??????????? # ##?????????????????? | | ??????????? # ##?????????????????? | | ??????????? + ##?????????????????? | | ??????????? # ##?????????????????? | | ???? # ############# ????? | | ????######### ############# ???? | | ????## ???? | | ????## ?????? | | ????## "" "" """"" ""?????? | | ????## """"" """"" Y"? ##?? | | ###### """" """"" "" ##?? | | ###### ##?? | | # # ##?? | | # # ######### #### | | # # # g # #### | | # # # s""" # | | # + # """ # | | # "" # %# """ + | | #]T" # # [%ss# | | # "" # # ! =* # | | # # # !== ## #######+#### | | ##/### #"@!= ## T### ## | | ## ### #T ## ""### """ ## | | ## ### #" ## #####="R" ## | | ## ### # ss ## #####%" " ## | | ##/### ######/### #####% ## | | # # ### # ##### ## | | # # ### """ + ^^^ %+* ## | | # # ### """ # ^ #% + | | # # ### """ #^ ^ ######### | | # + ### #######+####### | | # # ### !#### ### | | # # < ############# """ ### | | # # ############# """ ###"" | | # ######?????????## """ ###"" | | ###########?????????## ###"T | | #######?????????????## ###"" | | ????????????????????##] "T" ###"" | | ????????????????????##]] """ ### | | ????????????????????## ###### | | ????????????????????################ | | ????????????????????############???? | | | | | | | | | +----------------------------------------------------+ Best States ------------- Heat Dissipation 25 Energy Generation 10 Energy Capacity 250 Matter Stores 300 Matter Capacity 300 Sight Range 16 Terrain Scan Density 10 Evasion (%) 55 Targeting Accuracy 5 Item Schematics ----------------- None Robot Schematics ------------------ None Fabricated ------------ Nothing Repaired ---------- Aluminum Leg | 75% | -10/Materials Studied --------- None Alien Tech Used ----------------- None Achievements -------------- Shopping List Challenges ------------ None Game ------ Seed CentriumDeepMaxwheels Manual? 0 Play Time 00:18:03 Cumulative 3.6 hours Start 2026.06.23 @ 12:58:10 End 2026.06.23 @ 17:17:34 Sessions 1 Manual Loads 0 Difficulty Rogue Special Mode None Game No. 9 Rogue 9 Adventurer 0 Explorer 0 Win Type - Total 0 Types 0/0/0/0/0/0/0/0/0/0 Lore% 1 Gallery% 4 Achievement% 6 Wizard Run 0 Options --------- Layout 1 ASCII 0 Keyboard 0 Movement Numpad Keybinds 0 Fullscreen 1 Font 32/SmallcapsGlow Map View 50x35 Zoom Use 0% Tactical HUD 0 Map Filters NONE Filters NONE Steam 1 RUN: 19ff5e43-7d1f-4a61-882d-f1c822273bea